[Event "HSK IM Invitational 2022"]
[Site "Hamburg"]
[Date "2022.05.23"]
[Round "4.2"]
[White "Miezis, Normunds"]
[Black "Kotyk, Michael"]
[Result "1-0"]
[ECO "A27"]
[WhiteElo "2452"]
[BlackElo "2170"]
[Annotator "TA"]
[PlyCount "71"]
[EventDate "2022.05.20"]
[EventType "tourn"]
[EventCountry "GER"]
[SourceTitle "playchess.com"]
[Source "ChessBase"]
[SourceQuality "1"]
[TimeControl "40/5400+30:1800+30"]

{[%evp 9,71,18,3,-32,-23,-52,-58,-65,-52,-78,-41,-122,-72,-95,-96,-88,-82,-116,-91,-100,-106,-150,-141,-148,-75,-81,-83,-64,-61,-106,-51,-59,0,0,35,0,-18,-24,0,-10,244,148,196,200,211,220,315,306,669,560,557,560,550,537,550,540,1243,1202,1346,1086,29982,1826,29987,12835]} 1. c4 {[%emt 0:00:05]} e5 {[%emt 0:00:04]} 2. Nc3 {[%emt 0:00:56]} Nc6 {[%emt 0:00:07]} 3. Nf3 {[%emt 0:01:36]} f5 {[%emt 0:00:08]} 4. d4 {[%emt 0:00:43]} e4 {[%emt 0:00:06]} 5. Ng5 {[%emt 0:00:17]} Bb4 {[%emt 0:00:04]} 6. g3 {[%emt 0:04:04] A27: English Opening: Three Knights Variation.} Qf6 {[%emt 0:00:08]} 7. Be3 {[%emt 0:02:35] [#]} Bxc3+ $146 {[%emt 0:03:29]} ({Predecessor:} 7... Nge7 8. Qb3 a5 9. a3 a4 10. Qc2 Ba5 11. O-O-O Bxc3 12. Qxc3 d5 13. f3 Na5 14. fxe4 dxe4 15. Bg2 Qa6 16. c5 Nd5 {0-1 (16) Heuer,T (2280)-Jamrich,G (2310) Budapest 1998}) 8. bxc3 {[%emt 0:00:18] Black is slightly better.} b6 {[%emt 0:06:35]} 9. Bg2 {[%emt 0:08:15]} Na5 {[%emt 0:04:51]} 10. Qa4 {[%emt 0:04:22]} (10. f3 $15 Nxc4 11. Bc1) 10... Ba6 {[%emt 0:00:47]} (10... h6 $142 11. Nh3 Ba6) 11. c5 {[%emt 0:00:20]} h6 {[%emt 0:09:49]} 12. Nh3 {[%emt 0:00:08]} g5 {[%emt 0:00:04]} 13. Rc1 {[%emt 0:03:26]} Qe6 {[%emt 0:05:35]} 14. d5 {[%emt 0:21:48]} Qxd5 {[%emt 0:00:33]} 15. Bd4 {[%emt 0:00:09]} Rh7 {[%emt 0:01:47]} 16. f3 {[%emt 0:00:08] [#]} O-O-O {[%emt 0:15:42]} (16... Qc4 $142 $1 {[%cal Rc4e2]} 17. Qxc4 Nxc4 18. fxe4 Bb7) 17. fxe4 $17 {[%emt 0:01:08]} fxe4 {[%emt 0:01:56]} 18. Nf2 {[%emt 0:00:35] Hoping for cxb6.} Re7 {[%emt 0:01:39]} 19. Rc2 {[%emt 0:06:07]} Rde8 {[%emt 0:11:42]} (19... Rf8 $17 20. O-O Qc4) 20. O-O {[%emt 0:01:49]} h5 {[%emt 0:02:05] Prevents Ng4.} (20... Qc4 $15 21. Qa3 Nc6) 21. Nd1 $11 {[%emt 0:05:37]} Rf7 {[%emt 0:04:30]} 22. Ne3 {[%emt 0:01:21]} (22. Rxf7 $14 Qxf7 23. c4) 22... Rxf1+ {[%emt 0:00:01]} 23. Bxf1 {[%emt 0:01:37]} Qe6 {[%emt 0:00:37]} (23... Qc6 $5 {[%cal Rc6a4]} 24. Qa3 Nf6 $11) 24. c4 {[%emt 0:00:44][%cal Bc3c4,Bc4c5,Bc5d6][%mdl 32]} d6 $2 {[%emt 0:15:04][%mdl 8192]} (24... Kb7 $1 $11) 25. cxd6 {[%emt 0:04:25][%cal Of1h3] And now Bh3! would win.} cxd6 {[%emt 0:00:23]} (25... Qd7 $16 26. Qxd7+ (26. Bh3 g4 $11) 26... Kxd7) 26. Bc3 {[%emt 0:04:45]} Qd7 {[%emt 0:01:26] Against Bh3} 27. Qa3 {[%emt 0:01:23]} ({Stronger than} 27. Bh3 g4 28. Qxd7+ Kxd7 29. Bxa5 bxa5 $17) 27... Qc6 {[%emt 0:02:02]} (27... Bb7 {was worth a try.} 28. Rd2 Re6 29. Bxa5 (29. c5 d5 $18) 29... bxa5) 28. c5 $18 {[%emt 0:03:02]} Kd7 $2 {[%emt 0:02:28]} (28... dxc5 29. Bxa5 Kb8) 29. Bxa5 {[%emt 0:01:31]} bxa5 {[%emt 0:00:05]} 30. cxd6 {[%emt 0:00:29]} Qb6 {[%emt 0:00:02]} 31. Rc7+ {[%emt 0:07:25]} Ke6 {[%emt 0:00:31]} 32. Qc3 {[%emt 0:06:12] aiming for d7.} Bb5 {[%emt 0:01:07] Against d7} 33. Rc5 {[%emt 0:01:13]} Kd7 {[%emt 0:02:02]} 34. Nd5 {[%emt 0:01:05]} Qb8 {[%emt 0:00:04]} 35. Nc7 {[%emt 0:01:31]} (35. Bh3+ $142 Kxd6 36. Nc7 Nf6 37. Rxb5 Qxb5 38. Nxb5+ Kd5 39. Qxf6 g4 40. Qd6+ Kc4 {[#]} 41. e3 $1) 35... Ba4 {[%emt 0:00:38]} 36. Nxe8 {[%emt 0:00:52] Quite a comeback for White.  Weighted Error Value: White=0.24 (precise) /Black=0.98} (36. Qg7+ $142 Ne7 37. Nxe8 Qxe8 38. dxe7 Qxe7 39. Rd5+ Kc6 40. Qxe7 Kxd5 41. Bg2) 1-0

[Event "HSK IM Invitational 2022"]
[Site "Hamburg"]
[Date "2022.05.23"]
[Round "4.3"]
[White "Fischer, Daniel"]
[Black "Schulze, Lara"]
[Result "0-1"]
[ECO "B62"]
[WhiteElo "2367"]
[BlackElo "2303"]
[Annotator "TA"]
[PlyCount "92"]
[EventDate "2022.05.20"]
[EventType "tourn"]
[EventCountry "GER"]
[SourceTitle "playchess.com"]
[Source "ChessBase"]
[SourceQuality "1"]
[TimeControl "40/5400+30:1800+30"]

{[%evp 13,92,28,39,8,21,33,25,0,0,5,29,27,35,12,14,-21,22,15,31,0,0,-2,0,-26,-43,-27,-34,-27,-34,-36,-35,-25,0,0,49,-58,-36,-62,-61,-52,-54,-160,-166,-155,-129,-130,-118,-98,-116,-190,-83,-95,0,-25,-4,0,0,0,0,0,0,0,0,0,0,0,0,-333,-333,-333,-325,-320,-306,-286,-169,-29992,-29993,-29993,-29987,-29994,-29995]} 1. e4 {[%emt 0:00:04]} c5 {[%emt 0:00:02]} 2. Nf3 {[%emt 0:00:09]} Nc6 {[%emt 0:00:04]} 3. d4 {[%emt 0:00:05]} cxd4 {[%emt 0:00:04]} 4. Nxd4 {[%emt 0:00:04]} Nf6 {[%emt 0:00:08]} 5. Nc3 {[%emt 0:00:04]} d6 {[%emt 0:00:06]} 6. Bg5 {[%emt 0:00:13]} e6 {[%emt 0:00:12]} 7. Bb5 {[%emt 0:00:28]} Bd7 {[%emt 0:02:41]} 8. Qd3 {[%emt 0:00:21] is recently more successful than 8.Bxc6. B62: Sicilian: Richter-Rauzer: 6...e6: Unusual White 7th moves.} Be7 {[%emt 0:02:28]} (8... h6 $5 {[%cal Rh6g5]} 9. Bh4 Be7 $11) 9. O-O-O {[%emt 0:00:35]} O-O {[%emt 0:04:02]} 10. Bxc6 {[%emt 0:00:30] White has an edge.} (10. f4 {keeps more tension.} Nxd4 11. Bxd7 h6 12. h4) 10... bxc6 {[%emt 0:00:09]} 11. Nb3 {[%emt 0:00:22][%cal Oe4e5]} Bc8 {[%emt 0:01:23]} 12. Rhe1 {[%emt 0:01:23]} e5 {[%emt 0:11:47] [#]} 13. a3 $146 {[%emt 0:08:02]} ({Predecessor:} 13. f4 h6 14. fxe5 dxe5 15. Be3 Bg4 16. Qxd8 Rfxd8 17. Rxd8+ Bxd8 18. Nc5 Bh5 19. Nb7 {½-½ (57) Deakin,C (2101)-Simplina,P ICCF email 2020}) 13... Be6 {[%emt 0:10:33]} 14. f4 {[%emt 0:07:40]} Rb8 {[%emt 0:10:03]} (14... Qc8 $5 {[%cal Ra8b8]}) 15. fxe5 {[%emt 0:22:47]} dxe5 {[%emt 0:01:43]} 16. Qg3 {[%emt 0:04:01]} Qc7 {[%emt 0:15:33]} 17. Bxf6 {[%emt 0:12:28]} (17. Nc5 $5) 17... Bxf6 {[%emt 0:00:13]} 18. Nc5 {[%emt 0:00:22]} Qe7 {[%emt 0:03:46]} 19. Qf2 {[%emt 0:07:35]} Bh4 {[%emt 0:05:16]} 20. g3 {[%emt 0:00:34]} Bg5+ {[%emt 0:00:09]} 21. Kb1 {[%emt 0:00:14]} Bg4 {[%emt 0:00:28]} 22. Rd3 {[%emt 0:01:58]} f5 {[%emt 0:04:42] Hoping for ...fxe4.} 23. Qg1 {[%emt 0:10:41]} f4 {[%emt 0:02:21]} (23... Rfd8 $11 {feels stronger.}) 24. N3a4 {[%emt 0:05:28]} (24. gxf4 $1 $14 Rxf4 25. Ne2 Bxe2 26. Rxe2) 24... f3 $36 {[%emt 0:04:02][%mdl 2048] White must now prevent ...f2. Black is pushing.} 25. Qf2 {[%emt 0:00:10]} Rbd8 {[%emt 0:01:37]} 26. Red1 {[%emt 0:05:57]} h5 {[%emt 0:01:06]} 27. h3 {[%emt 0:02:25]} (27. h4 $15 Bf6 28. Rxd8 Rxd8 29. Nd3) 27... Rxd3 $17 {[%emt 0:03:25]} ({Stronger than} 27... Bxh3 28. Rxd8 Rxd8 29. Qxf3 $17 (29. Rxd8+ Qxd8 30. Qxf3 Bg4 $17)) 28. Rxd3 {[%emt 0:00:08]} Bxh3 {[%emt 0:00:15]} 29. Rxf3 {[%emt 0:00:04]} Bg4 {[%emt 0:02:40] A strong pair of Bishops.} 30. Rxf8+ {[%emt 0:00:20]} Qxf8 {[%emt 0:00:02]} 31. Qe1 {[%emt 0:03:51]} (31. Qxf8+ $17 {might work better.} Kxf8 32. Nd3) 31... Kh7 {[%emt 0:02:10]} (31... Qf3 $19 {and Black stays clearly on top. And now ...Be3 would win.} 32. Nd3 Qg2) 32. Nd3 {[%emt 0:00:33] [#]} Bf6 {[%emt 0:03:05] Black is more active.} (32... Bh3 $1 $17) 33. Qa5 {[%emt 0:01:32]} Qe7 {[%emt 0:00:28]} 34. Qa6 {[%emt 0:00:52]} Qd7 {[%emt 0:01:16]} 35. Nac5 {[%emt 0:00:21]} Qd4 {[%emt 0:00:41] Threatens to win with ...Qg1+.} 36. Qxa7 {[%emt 0:03:18]} Qg1+ {[%emt 0:01:23]} 37. Ka2 {[%emt 0:00:03]} Qxg3 {[%emt 0:00:11]} 38. a4 $1 {[%emt 0:01:11] Strongly threatening a5.} h4 {[%emt 0:01:11] aiming for ...h3.} 39. a5 {[%emt 0:01:07]} h3 {[%emt 0:02:33]} 40. Qb7 $2 {[%emt 0:00:23][%mdl 8192]} (40. a6 $11 {and White has nothing to worry.} h2 41. Qb8) 40... h2 $19 {[%emt 0:04:25]} 41. a6 {[%emt 0:30:03]} h1=Q {[%emt 0:03:46]} 42. a7 {[%emt 0:00:00]} Qgg2 {[%emt 0:15:52][%cal Og4e6] ...Be6+! is the strong threat.} 43. a8=Q {[%emt 0:00:00] [#]} Qxc2 {[%emt 0:00:14]} (43... Be6+ $142 $1 {[%mdl 512]} 44. Nxe6 Qxc2) 44. Qe8 $2 {[%emt 0:00:00]} (44. Qf7 $19 Qhb1+ 45. Ka3 Qa1+ 46. Qa2) 44... Qhb1+ {[%emt 0:05:49] Black mates.} 45. Ka3 {[%emt 0:00:00]} Qa1+ {[%emt 0:03:07]} 46. Kb4 {[%emt 0:00:00]} Qa2 {[%emt 0:00:27] Weighted Error Value: White=0.45/Black=0.17 (very precise)} 0-1

[Event "HSK IM Invitational 2022"]
[Site "Hamburg"]
[Date "2022.05.23"]
[Round "4.4"]
[White "Hommer, Jeremy"]
[Black "Garner, Isaac"]
[Result "0-1"]
[ECO "C54"]
[WhiteElo "2152"]
[BlackElo "2240"]
[Annotator "TA"]
[PlyCount "50"]
[EventDate "2022.05.20"]
[EventType "tourn"]
[EventCountry "GER"]
[SourceTitle "playchess.com"]
[Source "ChessBase"]
[SourceQuality "1"]
[TimeControl "40/5400+30:1800+30"]

{[%evp 12,50,17,0,8,0,0,0,9,0,23,0,0,0,0,0,-8,-5,0,-10,0,0,0,-27,-32,-33,-37,-174,-169,-164,-162,-287,-302,-495,-522,-516,-486,-495,-479,-29980,-29956]} 1. e4 {[%emt 0:09:25]} e5 {[%emt 0:00:25]} 2. Nf3 {[%emt 0:03:07]} Nc6 {[%emt 0:00:22]} 3. Bc4 {[%emt 0:00:08]} Nf6 {[%emt 0:00:19]} 4. d3 {[%emt 0:00:06]} Bc5 {[%emt 0:00:51]} 5. c3 {[%emt 0:00:13]} d6 {[%emt 0:00:21]} 6. Nbd2 {[%emt 0:00:23]} O-O {[%emt 0:00:51]} 7. O-O {[%emt 0:00:10]} a5 {[%emt 0:00:19] C54: Giuoco Piano: 4 c3 Nf6, main lines with 5 d4 and 5 d3.} 8. a4 {[%emt 0:02:51]} h6 {[%emt 0:01:07]} 9. h3 {[%emt 0:00:42]} Be6 {[%emt 0:01:18] The position is equal.} 10. Re1 {[%emt 0:09:45]} Ba7 {[%emt 0:13:47]} 11. Qb3 {[%emt 0:11:17][%csl LRb7,LRe6]} Qd7 {[%emt 0:01:35]} 12. Bxe6 {[%emt 0:00:45]} ({Wrong is} 12. Qxb7 $2 Bxc4 13. Nxc4 Rfb8 $19) 12... fxe6 {[%emt 0:00:14]} 13. Nf1 {[%emt 0:05:15]} Nh5 {[%emt 0:04:03]} 14. Be3 {[%emt 0:00:37]} Nf4 {[%emt 0:06:01] [#]} 15. Qd1 $146 {[%emt 0:05:52]} ({Predecessor:} 15. Bxa7 Rxa7 16. Re3 Raa8 17. N1h2 Kh8 18. h4 b6 19. g3 Nh5 20. Qb5 Nf6 21. Rc1 {½-½ (62) Valsecchi,A (2500)-Sanal,V (2502) Batumi 2018}) 15... Qf7 {[%emt 0:18:25][%cal Of4h3]} 16. Bxa7 {[%emt 0:04:49]} Rxa7 {[%emt 0:01:09]} 17. Re3 {[%emt 0:00:26]} d5 {[%emt 0:10:02] ...d4 is the strong threat.} 18. exd5 {[%emt 0:06:44]} exd5 {[%emt 0:01:45]} 19. Nxe5 {[%emt 0:00:43] Now White is beyond hope.} (19. N1h2 $15) 19... Nxe5 $19 {[%emt 0:00:05]} 20. Rxe5 {[%emt 0:00:10] [#]} Ra6 $1 $40 {[%emt 0:00:35][%cal Of4h3][%mdl 128] White is in trouble.} 21. Re3 {[%emt 0:05:00]} (21. Qf3 $142 Rf6 22. Ree1) 21... Nxg2 {[%emt 0:03:47][%mdl 64] Discovered Attack} 22. Rg3 $2 {[%emt 0:05:47]} (22. Kxg2 {was the only chance.} Rg6+ 23. Rg3 Qxf2+ 24. Kh1 Rxg3 25. Nxg3 Qxg3 26. Qg4 Qxd3 27. Rg1) 22... Qxf2+ {[%emt 0:02:28]} 23. Kh1 {[%emt 0:00:04] Strongly threatening Qg4.} Nf4 {[%emt 0:05:11] aiming for ...Ne2.} 24. Qe1 {[%emt 0:01:42]} Qxb2 {[%emt 0:03:29] Hoping for ...Re6.} 25. Qe7 {[%emt 0:09:16] [#]} (25. Rb1 $19 Qe2 26. Qxe2 Nxe2 27. Rg2 Nxc3 28. Rc1) 25... Nh5 {[%emt 0:03:23] Weighted Error Value: White=0.77/Black=0.02 (flawless)} 0-1

[Event "HSK IM Invitational 2022"]
[Site "Hamburg"]
[Date "2022.05.23"]
[Round "4.5"]
[White "Bracker, Arne"]
[Black "Kopylov, Michael"]
[Result "1/2-1/2"]
[ECO "C10"]
[WhiteElo "2276"]
[BlackElo "2378"]
[Annotator "TA"]
[PlyCount "40"]
[EventDate "2022.05.20"]
[EventType "tourn"]
[EventCountry "GER"]
[SourceTitle "playchess.com"]
[Source "ChessBase"]
[SourceQuality "1"]
[TimeControl "40/5400+30:1800+30"]

{[%evp 17,40,28,34,32,19,31,54,48,23,13,16,0,42,0,0,0,16,0,0,0,0,0,0,0,5]} 1. e4 {[%emt 0:00:03]} e6 {[%emt 0:14:11]} 2. d4 {[%emt 0:01:07]} d5 {[%emt 0:00:09]} 3. Nc3 {[%emt 0:00:16]} dxe4 {[%emt 0:00:18]} 4. Nxe4 {[%emt 0:00:15]} Nd7 {[%emt 0:00:07]} 5. Nf3 {[%emt 0:00:08]} Ngf6 {[%emt 0:00:09]} 6. Nxf6+ {[%emt 0:00:29]} Nxf6 {[%emt 0:02:40]} 7. Be3 {[%emt 0:03:43]} Be7 {[%emt 0:06:43]} 8. Bd3 {[%emt 0:01:11]} O-O {[%emt 0:00:30]} 9. Qe2 {[%emt 0:00:30]} b6 {[%emt 0:00:30]} 10. O-O-O {[%emt 0:00:30] C10: French with 3 Nc3: Unusual Black 3rd moves and 3...dxe4.} (10. Ne5 {feels hotter.} Bb7 11. O-O Nd5 12. Rad1) 10... Bb7 {[%emt 0:00:30]} 11. Kb1 {[%emt 1:27:48]} c5 {[%emt 0:10:13]} 12. dxc5 {[%emt 0:00:00][%cal Od3h7] [#] Black must now prevent Bxh7+! White is slightly better.} Qc7 {[%emt 0:00:36] [#]} 13. c6 $146 {[%emt 0:00:00]} ({Predecessor:} 13. cxb6 axb6 14. Bd4 Bd5 15. c4 Bxf3 16. gxf3 Rfd8 17. Bc3 b5 18. cxb5 Nd5 19. Be5 {1-0 (33) Frolyanov,D (2534)-Yandemirov,V (2387) Kazan 2017}) 13... Bxc6 {[%emt 0:03:23]} 14. Bd4 {[%emt 0:00:00]} Rad8 {[%emt 0:05:57] Hoping for ...Bxf3.} 15. c3 {[%emt 0:00:00]} Qb7 {[%emt 0:06:08] The position is equal.} 16. Rhe1 {[%emt 0:00:00]} b5 {[%emt 0:14:17]} 17. Ne5 {[%emt 0:00:00]} b4 {[%emt 0:06:11]} 18. Nxc6 {[%emt 0:00:00]} Qxc6 {[%emt 0:00:06]} 19. g4 {[%emt 0:00:00]} bxc3 {[%emt 0:10:13]} 20. Bxc3 {[%emt 0:00:00] A strong pair of Bishops.} Qa4 {[%emt 0:00:45] Weighted Error Value: White=0.10 (very precise) /Black=0.06 (flawless)} 1/2-1/2

[Event "HSK IM Invitational 2022"]
[Site "Hamburg"]
[Date "2022.05.24"]
[Round "5.1"]
[White "Kopylov, Michael"]
[Black "Clarke, Brandon G I"]
[Result "1-0"]
[ECO "B32"]
[WhiteElo "2378"]
[BlackElo "2445"]
[Annotator "TA"]
[PlyCount "97"]
[EventDate "2022.05.20"]
[EventType "tourn"]
[EventCountry "GER"]
[SourceTitle "playchess.com"]
[Source "ChessBase"]
[SourceQuality "1"]
[TimeControl "40/5400+30:1800+30"]

{[%evp 20,97,28,25,31,34,26,35,27,35,27,17,36,37,35,29,48,37,38,45,41,41,81,75,105,97,102,77,97,90,96,26,43,47,36,32,35,40,80,31,124,37,58,64,68,49,59,41,41,20,25,23,69,76,155,141,147,161,153,116,111,102,96,69,160,158,208,84,79,77,72,0,375,289,885,831,29993,29994,29994,29995]} 1. e4 {[%emt 0:13:56]} c5 {[%emt 0:00:12]} 2. Nf3 {[%emt 0:00:06][%cal Bg1f3,Bf3d4,Bd4b5,Bb5a3,Ba3c2][%mdl 32]} Nc6 {[%emt 0:00:25]} 3. d4 {[%emt 0:00:08]} cxd4 {[%emt 0:00:07]} 4. Nxd4 {[%emt 0:00:03]} e5 {[%emt 0:00:30]} 5. Nb5 {[%emt 0:00:08]} d6 {[%emt 0:00:08]} 6. c4 {[%emt 0:04:12]} Be7 {[%emt 0:00:41]} 7. N1c3 {[%emt 0:00:27]} a6 {[%emt 0:00:26]} 8. Na3 {[%emt 0:03:37]} f5 {[%emt 0:00:48]} 9. exf5 {[%emt 0:01:16]} Bxf5 {[%emt 0:00:46]} 10. Bd3 {[%emt 0:00:08]} Be6 {[%emt 0:00:24]} 11. Nc2 {[%emt 0:08:45]} Nf6 {[%emt 0:01:38] Against Qh5+. B32: Sicilian: Löwenthal and Kalashnikov Variations.} 12. O-O {[%emt 0:04:35]} O-O {[%emt 0:00:28]} 13. b3 {[%emt 0:01:14]} Qd7 {[%emt 0:01:28] White is slightly better.} 14. Nd5 {[%emt 0:08:14]} Bd8 {[%emt 0:06:50] Against Nb6} 15. Nxf6+ {[%emt 0:51:11]} Rxf6 {[%emt 0:07:15]} 16. Be4 {[%emt 0:00:00] [#]} Bb6 $146 {[%emt 1:16:24]} ({Predecessor:} 16... Ba5 17. Ba3 Rd8 18. Ne3 Bb6 19. Qc2 g6 20. Rad1 Bd4 21. Bb2 Bxb2 22. Qxb2 Nd4 {½-½ (36) Zacharov,O (2206)-Teverovski,B (2063) LSS email 2011}) 17. Qd3 {[%emt 0:00:00]} (17. Qh5 g6 18. Qg5 Rf7 $11) 17... g6 {[%emt 0:00:00]} 18. Bg5 {[%emt 0:00:00]} Rf7 {[%emt 0:00:00]} 19. Rad1 $36 {[%emt 0:00:00][%mdl 2048] White has some pressure.} Raf8 {[%emt 0:00:00][%cal Rb6f2]} 20. Rd2 {[%emt 0:02:30]} Kg7 {[%emt 0:00:00]} 21. Be3 {[%emt 0:00:00]} (21. Qxd6 Qxd6 22. Rxd6 Bxf2+ 23. Kh1 (23. Rxf2 Rxf2 24. h4 Rf1+ 25. Kh2 Bf5 $17) 23... Bc5 $1 24. Rxf7+ Rxf7 $15) 21... Ba5 {[%emt 0:00:00]} 22. Rdd1 {[%emt 0:00:00]} Bc7 {[%emt 0:00:00]} 23. Qc3 {[%emt 0:00:00]} Bf5 {[%emt 0:00:00]} 24. Bd5 {[%emt 0:00:00]} Be6 {[%emt 0:00:00]} 25. Rd3 {[%emt 0:00:00]} (25. Nb4 $16) 25... Bxd5 {[%emt 0:00:00]} 26. Rxd5 {[%emt 0:00:00]} Qe6 {[%emt 0:00:00]} 27. Rfd1 {[%emt 0:00:00]} Ne7 {[%emt 0:00:00]} 28. R5d2 {[%emt 0:00:00]} Kg8 {[%emt 0:00:49]} 29. Qb4 {[%emt 0:00:00]} (29. Nb4 $16) 29... Nf5 {[%emt 0:01:08]} ({Black should play} 29... Rb8 $14) 30. h3 {[%emt 0:00:00]} (30. Qxb7 $16 Ba5 31. Qd5 Qxd5 32. Rxd5 Nxe3 33. fxe3 (33. Nxe3 Bb4 $16)) 30... Bb8 {[%emt 0:04:30]} 31. Bb6 {[%emt 0:00:00]} Bc7 {[%emt 0:00:23]} 32. Re2 {[%emt 0:00:00]} Qf6 {[%emt 0:00:32]} 33. Rd3 {[%emt 0:00:00]} Qg5 {[%emt 0:00:29]} 34. Be3 {[%emt 0:00:00] Prevents Qc1+.} Qh4 {[%emt 0:00:33]} 35. Qd2 {[%emt 0:00:37] Hoping for Bg5.} Nxe3 {[%emt 0:00:34]} (35... h6 $11) 36. Nxe3 $14 {[%emt 0:01:38]} Bb6 {[%emt 0:00:23]} ({Better is} 36... Qf4) 37. Rxd6 $16 {[%emt 0:00:19]} Bd4 {[%emt 0:00:24]} 38. Ng4 {[%emt 0:00:06] Black must now prevent Qh6.} Rf4 {[%emt 0:00:36]} 39. Rd7 {[%emt 0:03:22]} (39. Nxe5 Bxf2+ 40. Kh1 Bg3 $17) 39... b6 {[%emt 0:00:34]} 40. Qc2 {[%emt 0:02:59]} Qg5 {[%emt 0:00:29]} 41. Kh1 {[%emt 0:18:58]} R8f5 {[%emt 0:31:06]} (41... h5 $14 42. Nxe5 Rxf2 43. Rxf2 (43. Qxg6+ Qxg6 44. Nxg6 Rxe2 $17) 43... Rxf2 44. Qxg6+ Qxg6 45. Nxg6 Bf6) 42. c5 $1 {[%emt 0:04:43]} Bxc5 {[%emt 0:00:00]} (42... bxc5 $16 {might work better.} 43. Qc4+ Rf7) 43. Qd3 {[%emt 0:00:20]} (43. g3 $1 $18 {[%cal Rg3f4] is more deadly.} Rxg4 44. hxg4 Qxg4 45. Qd3) 43... Rd4 {[%emt 0:00:00]} 44. Rxd4 {[%emt 0:00:22] White is much more active.} Bxd4 {[%emt 0:01:30]} 45. Rc2 {[%emt 0:09:06] Prevents Qc1+.} (45. Qc4+ Kg7 $11) (45. g3 $16 {Threatens to win with f4.} Qc1+ 46. Kg2 (46. Kh2 Kg7 $14) 46... Qc6+ 47. Qe4 Qxe4+ 48. Rxe4) 45... h5 $2 {[%emt 0:00:00][%mdl 8192] [#]} (45... Kg7 $11 {and Black has nothing to worry.}) 46. Rc7 $1 $18 {[%emt 0:00:00] Intending Qc4+ and mate.} b5 {[%emt 0:00:17] [#] Inhibits Qc4+.} (46... hxg4 {gets mated.} 47. Qc4+ Kf8 48. Rc8+ (48. Qd5 Qe7 $16) 48... Ke7 49. Qc7+ Ke6 50. Qc6+ Kf7 51. Qe8+ Kf6 52. Rc6+ Kg7 53. Rc7+) (46... Bc5) 47. Qe4 $1 {[%emt 0:00:00] Threatening mate with Qd5+.} ({Worse is} 47. Nxe5 Rxf2 48. Rc8+ Kh7 49. Rc7+ Kg8 50. Rc8+ Kh7 51. Rc7+ Kg8 $11) 47... Rf8 {[%emt 0:00:41]} 48. Qd5+ {[%emt 0:00:00]} Kh8 {[%emt 0:00:08]} 49. Qd7 {[%emt 0:00:00] Weighted Error Value: White=0.17 (very precise) /Black=0.49} 1-0

[Event "HSK IM Invitational 2022"]
[Site "Hamburg"]
[Date "2022.05.24"]
[Round "5.2"]
[White "Garner, Isaac"]
[Black "Bracker, Arne"]
[Result "0-1"]
[ECO "A27"]
[WhiteElo "2240"]
[BlackElo "2276"]
[Annotator "TA"]
[PlyCount "52"]
[EventDate "2022.05.20"]
[EventType "tourn"]
[EventCountry "GER"]
[SourceTitle "playchess.com"]
[Source "ChessBase"]
[SourceQuality "1"]
[TimeControl "40/5400+30:1800+30"]

1. d4 Nf6 2. c4 g6 3. Nc3 Bg7 4. e4 d6 5. h3 O-O 6. Be3 c5 7. d5 b5 8. cxb5 a6 9. a4 Nbd7 10. Nf3 Qa5 11. Nd2 axb5 12. Bxb5 Ba6 13. O-O Rfb8 14. Nc4 Qd8 15. Qc2 Ne8 16. Bxa6 Rxa6 17. Nb5 Nb6 18. Nxb6 Raxb6 19. Bd2 Ra8 20. Bc3 Nc7 21. Na3 Rba6 22. b3 Bxc3 23. Qxc3 Rb8 24. Rfd1 Rb4 25. Nc4 Qb8 26. Nd2 e6 0-1